[Event "DVM U12W 2021"]
[Site "Willingen"]
[Date "2022.08.15"]
[Round "6"]
[White "Bykov, Sophia"]
[Black "Piffczyk, Sandra"]
[Result "0-1"]
[ECO "C42"]
[WhiteElo "896"]
[BlackElo "704"]
[Annotator "NA RC"]
[PlyCount "98"]
[EventDate "2022.08.12"]
[EventType "team-tourn"]
[EventRounds "7"]
[EventCountry "GER"]
[SourceTitle "playchess.com"]
[Source "ChessBase"]
[SourceQuality "1"]
[TimeControl "40/5400+30:1800+30"]

1. e4 {[%emt 0:00:09]} e5 {[%emt 0:00:00]} 2. Nf3 {[%emt 0:00:14]} Nc6 {[%emt 0:00:00]} 3. Nc3 {[%emt 0:00:13]} Nf6 {[%emt 0:00:00]} 4. d3 {[%emt 0:00:19]} Bb4 {[%emt 0:00:01]} 5. a3 {[%emt 0:01:14]} Bxc3+ {[%emt 0:02:00]} 6. bxc3 {[%emt 0:00:30]} d6 {[%emt 0:00:30]} 7. Bg5 {[%emt 0:00:30]} O-O {[%emt 0:00:00]} 8. d4 {[%emt 0:01:10]} exd4 {[%emt 0:00:00]} 9. cxd4 {[%emt 0:00:33]} Bg4 {[%emt 0:00:00]} 10. Qd3 {[%emt 0:01:20]} Bxf3 {[%emt 0:00:00]} 11. Qxf3 {[%emt 0:00:17]} Nxd4 {[%emt 0:00:00]} 12. Qc3 {[%emt 0:00:43]} c5 {[%emt 0:00:29]} 13. Bd3 {[%emt 0:01:49]} h6 {[%emt 0:02:04]} 14. Be3 {[%emt 0:00:59]} Nc6 {[%emt 0:00:55]} 15. f4 {[%emt 0:03:29]} Qd7 {[%emt 0:00:38]} 16. O-O {[%emt 0:02:35]} d5 {[%emt 0:00:55]} 17. Qb2 {[%emt 0:01:04]} dxe4 {[%emt 0:00:19]} 18. Bb5 {[%emt 0:01:35]} a6 {[%emt 0:00:13]} 19. Bc4 {[%emt 0:01:43]} Ng4 {[%emt 0:00:28]} 20. Bxc5 {[%emt 0:02:29]} Rfd8 {[%emt 0:01:22]} 21. Rad1 {[%emt 0:01:59]} Qe8 {[%emt 0:03:03]} 22. Rde1 {[%emt 0:00:48]} Na5 {[%emt 0:01:26]} 23. Ba2 {[%emt 0:07:45]} Kh8 {[%emt 0:00:29]} 24. Bb6 {[%emt 0:08:51]} Rd6 {[%emt 0:00:22]} 25. Bxa5 {[%emt 0:02:47]} Qc6 {[%emt 0:01:27]} 26. Rc1 {[%emt 0:00:59]} Qc5+ {[%emt 0:00:31]} 27. Kh1 {[%emt 0:00:00]} Qxa5 {[%emt 0:00:31]} 28. Rcd1 {[%emt 0:00:00]} Rb6 {[%emt 0:00:27]} 29. Qd4 {[%emt 0:02:45]} Qh5 {[%emt 0:00:32]} 30. h3 {[%emt 0:01:37]} Rc6 {[%emt 0:00:24]} 31. Qxe4 {[%emt 0:01:50]} Qh4 {[%emt 0:00:21]} 32. c4 {[%emt 0:01:21]} Rac8 33. Bb1 {[%emt 0:12:16]} g6 {[%emt 0:01:50]} 34. Qd4+ {[%emt 0:00:00]} Kh7 {[%emt 0:00:37]} 35. Qd3 {[%emt 0:00:00]} Rxc4 {[%emt 0:00:48]} 36. Qd7 {[%emt 0:00:00]} Rf8 {[%emt 0:01:05]} 37. Rfe1 {[%emt 0:00:00]} Nf2+ {[%emt 0:00:29]} 38. Kg1 {[%emt 0:00:00]} Nxd1 {[%emt 0:00:14]} 39. Rxd1 {[%emt 0:00:00]} Rxf4 {[%emt 0:01:27]} 40. Rf1 {[%emt 0:00:00]} Rxf1+ {[%emt 0:00:09]} 41. Kxf1 {[%emt 0:26:14]} Qf6+ {[%emt 0:30:31]} 42. Ke2 {[%emt 0:02:52]} Qe6+ {[%emt 0:00:43]} 43. Qxe6 {[%emt 0:00:19]} fxe6 {[%emt 0:00:21]} 44. a4 {[%emt 0:01:01]} b5 {[%emt 0:00:29]} 45. axb5 {[%emt 0:00:11]} axb5 {[%emt 0:00:06]} 46. Bd3 {[%emt 0:00:10]} b4 {[%emt 0:00:14]} 47. Bc4 {[%emt 0:00:17]} Rb8 {[%emt 0:00:14]} 48. Bxe6 {[%emt 0:00:57]} b3 {[%emt 0:02:18]} 49. Bxb3 {[%emt 0:00:43]} Rxb3 {[%emt 0:00:00]} 0-1

[Event "DVM U12W 2021"]
[Site "Willingen"]
[Date "2022.08.15"]
[Round "6"]
[White "Grey, Paula"]
[Black "Müller, Ariana"]
[Result "0-1"]
[ECO "C50"]
[WhiteElo "854"]
[BlackElo "975"]
[Annotator "NA RC"]
[PlyCount "144"]
[EventDate "2022.08.12"]
[EventType "team-tourn"]
[EventRounds "7"]
[EventCountry "GER"]
[SourceTitle "playchess.com"]
[Source "ChessBase"]
[SourceQuality "1"]
[TimeControl "40/5400+30:1800+30"]

1. e4 {[%emt 0:00:04]} e5 {[%emt 0:00:00]} 2. Nf3 {[%emt 0:00:06]} Nc6 {[%emt 0:00:00]} 3. Bc4 {[%emt 0:00:11]} Bc5 {[%emt 0:00:59]} 4. Nc3 {[%emt 0:00:28]} Nf6 {[%emt 0:00:51]} 5. d3 {[%emt 0:00:11]} d6 {[%emt 0:00:22]} 6. h3 {[%emt 0:00:23]} Be6 {[%emt 0:00:59]} 7. Bg5 {[%emt 0:00:22]} h6 {[%emt 0:00:47]} 8. Be3 {[%emt 0:03:49]} Qd7 {[%emt 0:01:23]} 9. d4 {[%emt 0:02:22]} Bb4 {[%emt 0:01:11]} 10. Bxe6 {[%emt 0:01:06]} Qxe6 {[%emt 0:00:48]} 11. d5 {[%emt 0:01:43]} Qd7 {[%emt 0:00:57]} 12. dxc6 {[%emt 0:02:44]} Qxc6 {[%emt 0:01:20]} 13. Bd2 {[%emt 0:00:48]} Bxc3 {[%emt 0:01:49]} 14. Bxc3 {[%emt 0:02:29]} Nxe4 {[%emt 0:02:37]} 15. Bb4 {[%emt 0:01:14]} Qb6 {[%emt 0:02:54]} 16. O-O {[%emt 0:01:39]} Qxb4 {[%emt 0:04:20]} 17. b3 {[%emt 0:04:26]} O-O-O {[%emt 0:01:32]} 18. a4 {[%emt 0:03:06]} Nc5 {[%emt 0:04:40]} 19. a5 {[%emt 0:03:34]} e4 {[%emt 0:02:08]} 20. Nd4 {[%emt 0:03:13]} Rhe8 {[%emt 0:01:35]} 21. Re1 {[%emt 0:03:17]} Re5 {[%emt 0:09:01]} 22. Re3 {[%emt 0:03:26]} Na6 {[%emt 0:05:13]} 23. Rg3 {[%emt 0:04:04]} Rd5 {[%emt 0:03:00]} 24. Ra4 {[%emt 0:02:55]} Qc3 {[%emt 0:01:11]} 25. Rxc3 {[%emt 0:01:11]} c5 {[%emt 0:03:17]} 26. b4 {[%emt 0:01:57]} Kb8 {[%emt 0:03:16]} 27. bxc5 {[%emt 0:01:35]} dxc5 {[%emt 0:02:07]} 28. Rcc4 {[%emt 0:04:12]} Nc7 {[%emt 0:02:29]} 29. Qb1 {[%emt 0:05:19]} cxd4 {[%emt 0:02:55]} 30. a6 {[%emt 0:02:15]} b6 {[%emt 0:03:38]} 31. Rcb4 {[%emt 0:05:24]} d3 {[%emt 0:03:50]} 32. cxd3 {[%emt 0:01:01]} exd3 {[%emt 0:04:25]} 33. Ra2 {[%emt 0:08:37]} Re5 {[%emt 0:01:09]} 34. Rd2 {[%emt 0:02:25]} Red5 {[%emt 0:01:02]} 35. Rb3 {[%emt 0:03:24]} Nxa6 {[%emt 0:01:48]} 36. Rbxd3 {[%emt 0:00:51]} Rxd3 {[%emt 0:00:15]} 37. Rxd3 {[%emt 0:00:47]} Re8 {[%emt 0:02:53]} 38. Re3 {[%emt 0:00:55]} Rd8 {[%emt 0:01:08]} 39. Re7 {[%emt 0:03:28]} Nc5 {[%emt 0:01:58]} 40. Qa1 {[%emt 0:01:50]} Rd7 {[%emt 0:02:29]} 41. Re8+ {[%emt 0:31:23]} Kb7 {[%emt 0:31:03]} 42. Qxg7 {[%emt 0:01:36]} a5 {[%emt 0:01:23]} 43. Qe5 {[%emt 0:02:52]} Kc6 {[%emt 0:01:36]} 44. Rc8+ {[%emt 0:01:04]} Kb5 {[%emt 0:01:26]} 45. Qe2+ {[%emt 0:00:40]} Kb4 {[%emt 0:00:50]} 46. Rb8 {[%emt 0:00:23]} Rd6 {[%emt 0:00:57]} 47. Qc2 {[%emt 0:01:56]} a4 {[%emt 0:01:21]} 48. Re8 {[%emt 0:01:02]} a3 {[%emt 0:01:01]} 49. Ra8 {[%emt 0:01:23]} f6 {[%emt 0:02:15]} 50. Rh8 {[%emt 0:02:08]} f5 {[%emt 0:00:36]} 51. Qxf5 {[%emt 0:00:30]} a2 {[%emt 0:01:49]} 52. Qf4+ {[%emt 0:00:40]} Kb5 {[%emt 0:00:38]} 53. Ra8 {[%emt 0:00:19]} Rd1+ {[%emt 0:00:21]} 54. Kh2 {[%emt 0:00:16]} a1=Q {[%emt 0:00:31]} 55. Rxa1 {[%emt 0:00:10]} Rxa1 {[%emt 0:01:06]} 56. Qxh6 {[%emt 0:00:43]} Ka5 {[%emt 0:00:44]} 57. f4 {[%emt 0:00:36]} b5 {[%emt 0:01:05]} 58. f5 {[%emt 0:01:47]} Nd7 {[%emt 0:00:44]} 59. Qd2+ {[%emt 0:00:26]} b4 {[%emt 0:00:53]} 60. h4 {[%emt 0:00:24]} Nf6 {[%emt 0:00:26]} 61. Kh3 {[%emt 0:00:47]} Rh1+ {[%emt 0:00:32]} 62. Kg3 {[%emt 0:00:21]} Ne4+ {[%emt 0:00:44]} 63. Kg4 {[%emt 0:00:12]} Nxd2 {[%emt 0:00:19]} 64. f6 {[%emt 0:00:19]} Rf1 {[%emt 0:00:17]} 65. Kg5 {[%emt 0:00:15]} Ne4+ {[%emt 0:00:17]} 66. Kg6 {[%emt 0:00:00]} Rxf6+ {[%emt 0:01:03]} 67. Kg7 {[%emt 0:00:00]} b3 {[%emt 0:00:16]} 68. h5 {[%emt 0:00:00]} b2 {[%emt 0:00:07]} 69. h6 {[%emt 0:00:00]} b1=Q {[%emt 0:00:24]} 70. h7 {[%emt 0:00:22]} Qb7+ {[%emt 0:00:20]} 71. Kg8 {[%emt 0:00:21]} Qf7+ {[%emt 0:00:37]} 72. Kh8 Qf8# {[%emt 0:04:49]} 0-1

[Event "DVM U12W 2021"]
[Site "Willingen"]
[Date "2022.08.15"]
[Round "6"]
[White "Borck, Elena"]
[Black "Marrufo, Emilia"]
[Result "0-1"]
[ECO "C50"]
[WhiteElo "739"]
[BlackElo "970"]
[Annotator "NA RC"]
[PlyCount "40"]
[EventDate "2022.08.12"]
[EventType "team-tourn"]
[EventRounds "7"]
[EventCountry "GER"]
[SourceTitle "playchess.com"]
[Source "ChessBase"]
[SourceQuality "1"]
[TimeControl "40/5400+30:1800+30"]

1. e4 {[%emt 0:01:27]} e5 {[%emt 0:00:44]} 2. Nf3 {[%emt 0:00:35]} Nc6 {[%emt 0:02:29]} 3. Bc4 {[%emt 0:00:50]} Bc5 {[%emt 0:01:17]} 4. Nc3 {[%emt 0:02:00]} Nf6 {[%emt 0:03:15]} 5. d3 {[%emt 0:01:26]} d6 {[%emt 0:02:39]} 6. a3 {[%emt 0:01:33]} a6 {[%emt 0:00:39]} 7. b4 {[%emt 0:00:58]} Ba7 {[%emt 0:01:41]} 8. b5 {[%emt 0:05:39]} Nd4 {[%emt 0:03:49]} 9. bxa6 {[%emt 0:00:46]} bxa6 {[%emt 0:01:00]} 10. Nd5 {[%emt 0:03:11]} c6 {[%emt 0:02:48]} 11. Nb4 {[%emt 0:05:30]} d5 {[%emt 0:01:01]} 12. exd5 {[%emt 0:02:15]} Nxd5 {[%emt 0:02:54]} 13. Nxe5 {[%emt 0:02:17]} Qe7 {[%emt 0:02:10]} 14. Nxd5 {[%emt 0:01:18]} cxd5 {[%emt 0:08:18]} 15. c3 {[%emt 0:00:34]} Qxe5+ {[%emt 0:02:45]} 16. Be3 {[%emt 0:01:10]} dxc4 {[%emt 0:00:57]} 17. O-O {[%emt 0:01:54]} Nc6 {[%emt 0:01:08]} 18. d4 {[%emt 0:01:47]} Qf5 {[%emt 0:02:14]} 19. Qa4 {[%emt 0:02:11]} Bb7 {[%emt 0:01:41]} 20. Qxc4 {[%emt 0:02:34]} O-O 0-1

[Event "DVM U12W 2021"]
[Site "Willingen"]
[Date "2022.08.16"]
[Round "7"]
[White "Ramakrishnan, Veda"]
[Black "Abram, Kristina-Maria"]
[Result "1-0"]
[ECO "B01"]
[WhiteElo "1333"]
[BlackElo "1128"]
[Annotator "NA RC"]
[PlyCount "51"]
[EventDate "2022.08.12"]
[EventType "team-tourn"]
[EventRounds "7"]
[EventCountry "GER"]
[SourceTitle "playchess.com"]
[Source "ChessBase"]
[SourceQuality "1"]
[TimeControl "40/5400+30:1800+30"]

1. e4 {[%emt 0:00:02]} d5 {[%emt 0:00:06]} 2. exd5 {[%emt 0:00:08]} Qxd5 {[%emt 0:00:04]} 3. Nf3 {[%emt 0:00:16]} Bg4 {[%emt 0:00:51]} 4. Be2 {[%emt 0:00:25]} Nf6 {[%emt 0:01:04]} 5. d4 {[%emt 0:01:20]} Nc6 {[%emt 0:01:33]} 6. c4 {[%emt 0:02:08]} Qd7 {[%emt 0:02:07]} 7. d5 {[%emt 0:01:21]} Bxf3 {[%emt 0:01:42]} 8. Bxf3 {[%emt 0:01:14]} Ne5 {[%emt 0:01:20]} 9. b3 {[%emt 0:01:14]} Qf5 {[%emt 0:04:24]} 10. Nd2 {[%emt 0:01:12]} Nd3+ {[%emt 0:01:18]} 11. Kf1 {[%emt 0:01:11]} e5 {[%emt 0:01:56]} 12. Qe2 {[%emt 0:01:25]} Bc5 {[%emt 0:03:00]} 13. g4 {[%emt 0:10:47]} Qg6 {[%emt 0:07:35]} 14. Ne4 {[%emt 0:03:18]} Nf4 {[%emt 0:01:42]} 15. Bxf4 {[%emt 0:03:41]} Nxe4 {[%emt 0:04:40]} 16. Bxe4 {[%emt 0:00:43]} Qf6 {[%emt 0:00:13]} 17. Be3 {[%emt 0:01:15]} Bd6 {[%emt 0:00:56]} 18. Qf3 {[%emt 0:01:22]} Qe7 {[%emt 0:02:09]} 19. Rc1 {[%emt 0:01:58]} O-O {[%emt 0:01:26]} 20. c5 {[%emt 0:00:27]} Rad8 {[%emt 0:01:39]} 21. cxd6 {[%emt 0:00:17]} Qxd6 {[%emt 0:00:09]} 22. Bc5 {[%emt 0:03:10]} Qa6+ {[%emt 0:00:21]} 23. Bd3 {[%emt 0:00:27]} Qxa2 {[%emt 0:01:11]} 24. Bxf8 {[%emt 0:00:25]} Rxf8 {[%emt 0:00:07]} 25. Rxc7 {[%emt 0:01:18]} Qxb3 {[%emt 0:00:40]} 26. Bxh7+ {[%emt 0:00:21]} 1-0

[Event "DVM U12W 2021"]
[Site "Willingen"]
[Date "2022.08.16"]
[Round "7"]
[White "Schuelke, Rosalie"]
[Black "Müller, Cosima"]
[Result "0-1"]
[ECO "B27"]
[WhiteElo "1297"]
[BlackElo "1355"]
[Annotator "NA RC"]
[PlyCount "54"]
[EventDate "2022.08.12"]
[EventType "team-tourn"]
[EventRounds "7"]
[EventCountry "GER"]
[SourceTitle "playchess.com"]
[Source "ChessBase"]
[SourceQuality "1"]
[TimeControl "40/5400+30:1800+30"]

1. e4 {[%emt 0:00:02]} c5 {[%emt 0:00:07]} 2. Nf3 {[%emt 0:00:13]} g6 {[%emt 0:00:08]} 3. c3 {[%emt 0:00:30]} Bg7 {[%emt 0:05:06]} 4. d4 {[%emt 0:01:35]} cxd4 {[%emt 0:00:40]} 5. Nxd4 {[%emt 0:01:01]} Nf6 {[%emt 0:00:41]} 6. f3 {[%emt 0:02:28]} Nc6 {[%emt 0:02:36]} 7. Nxc6 {[%emt 0:04:26]} bxc6 {[%emt 0:00:05]} 8. Be3 {[%emt 0:01:22]} O-O {[%emt 0:01:49]} 9. Be2 {[%emt 0:03:09]} Qc7 {[%emt 0:03:47]} 10. c4 {[%emt 0:06:18]} d5 {[%emt 0:04:10]} 11. cxd5 {[%emt 0:01:34]} cxd5 {[%emt 0:00:08]} 12. Nc3 {[%emt 0:04:29]} dxe4 {[%emt 0:01:12]} 13. Rc1 {[%emt 0:03:56]} Qb7 {[%emt 0:03:55]} 14. b3 {[%emt 0:03:33]} Qb4 {[%emt 0:01:59]} 15. O-O {[%emt 0:02:25]} Bb7 {[%emt 0:04:19]} 16. Nxe4 {[%emt 0:08:55]} Nxe4 {[%emt 0:01:48]} 17. fxe4 {[%emt 0:01:23]} Qxe4 {[%emt 0:02:00]} 18. Bf3 {[%emt 0:01:18]} Qxe3+ {[%emt 0:00:10]} 19. Kh1 {[%emt 0:00:07]} Rfd8 {[%emt 0:01:03]} 20. Qe2 {[%emt 0:01:40]} Qxe2 {[%emt 0:00:36]} 21. Bxe2 {[%emt 0:00:24]} Rd2 {[%emt 0:01:21]} 22. Bc4 {[%emt 0:01:06]} Bxg2+ {[%emt 0:00:48]} 23. Kg1 {[%emt 0:00:06]} Bxf1 {[%emt 0:00:04]} 24. Rxf1 {[%emt 0:00:21]} Bd4+ {[%emt 0:00:45]} 25. Kh1 {[%emt 0:00:50]} Rf2 {[%emt 0:00:41]} 26. Rxf2 {[%emt 0:00:42]} Bxf2 {[%emt 0:00:08]} 27. Kg2 {[%emt 0:02:08]} Bc5 {[%emt 0:00:21]} 0-1

[Event "DVM U12W 2021"]
[Site "Willingen"]
[Date "2022.08.16"]
[Round "7"]
[White "Mersmann, Jasmin"]
[Black "Striebeck, Liv"]
[Result "1-0"]
[ECO "C47"]
[WhiteElo "1232"]
[BlackElo "1003"]
[Annotator "NA RC"]
[PlyCount "53"]
[EventDate "2022.08.12"]
[EventType "team-tourn"]
[EventRounds "7"]
[EventCountry "GER"]
[SourceTitle "playchess.com"]
[Source "ChessBase"]
[SourceQuality "1"]
[TimeControl "40/5400+30:1800+30"]

1. e4 {[%emt 0:00:02]} e5 {[%emt 0:00:06]} 2. Nf3 {[%emt 0:00:09]} Nc6 {[%emt 0:00:05]} 3. Nc3 {[%emt 0:00:04]} Nf6 {[%emt 0:00:13]} 4. a3 {[%emt 0:00:23]} a6 {[%emt 0:01:53]} 5. h3 {[%emt 0:00:11]} h6 {[%emt 0:01:43]} 6. d4 {[%emt 0:01:52]} exd4 {[%emt 0:01:49]} 7. Nxd4 {[%emt 0:00:13]} Bc5 {[%emt 0:02:21]} 8. Nxc6 {[%emt 0:00:48]} bxc6 {[%emt 0:00:07]} 9. Bf4 {[%emt 0:00:34]} d5 {[%emt 0:03:06]} 10. exd5 {[%emt 0:02:03]} cxd5 {[%emt 0:02:32]} 11. Qe2+ {[%emt 0:03:49]} Be6 {[%emt 0:01:00]} 12. O-O-O {[%emt 0:00:43]} O-O {[%emt 0:01:16]} 13. g4 {[%emt 0:00:55]} g5 {[%emt 0:00:22]} 14. Be3 {[%emt 0:00:28]} Bd6 {[%emt 0:06:28]} 15. Bg2 {[%emt 0:01:00]} c6 {[%emt 0:03:47]} 16. Bf3 {[%emt 0:01:06]} Re8 {[%emt 0:03:12]} 17. h4 {[%emt 0:00:35]} Bf4 {[%emt 0:05:24]} 18. hxg5 {[%emt 0:00:31]} hxg5 {[%emt 0:03:41]} 19. Bxf4 {[%emt 0:00:21]} gxf4 {[%emt 0:00:48]} 20. Qd2 {[%emt 0:00:22]} Bxg4 {[%emt 0:01:33]} 21. Bxg4 {[%emt 0:00:30]} Nxg4 {[%emt 0:00:34]} 22. Qxf4 {[%emt 0:00:07]} Qf6 {[%emt 0:05:21]} 23. Qxg4+ {[%emt 0:00:35]} Qg7 {[%emt 0:01:51]} 24. Qb4 {[%emt 0:00:50]} f5 {[%emt 0:01:29]} 25. Rdg1 {[%emt 0:00:13]} Kf7 {[%emt 0:01:28]} 26. Qb7+ {[%emt 0:00:21]} Re7 {[%emt 0:00:46]} 27. Rxg7+ {[%emt 0:00:23]} 1-0

[Event "DVM U12W 2021"]
[Site "Willingen"]
[Date "2022.08.16"]
[Round "7"]
[White "Schube, Theresa"]
[Black "Prokscha, Charlotte"]
[Result "0-1"]
[ECO "B22"]
[WhiteElo "1162"]
[BlackElo "1241"]
[Annotator "NA RC"]
[PlyCount "80"]
[EventDate "2022.08.12"]
[EventType "team-tourn"]
[EventRounds "7"]
[EventCountry "GER"]
[SourceTitle "playchess.com"]
[Source "ChessBase"]
[SourceQuality "1"]
[TimeControl "40/5400+30:1800+30"]

1. e4 {[%emt 0:00:04]} c5 {[%emt 0:00:07]} 2. Nf3 {[%emt 0:00:17]} e6 {[%emt 0:00:09]} 3. c3 {[%emt 0:00:53]} Nc6 {[%emt 0:01:38]} 4. d4 {[%emt 0:00:44]} cxd4 {[%emt 0:00:56]} 5. cxd4 {[%emt 0:00:59]} Bb4+ {[%emt 0:03:26]} 6. Nc3 {[%emt 0:07:11]} Nf6 {[%emt 0:05:01]} 7. Bd3 {[%emt 0:01:47]} h6 {[%emt 0:05:36]} 8. a3 {[%emt 0:01:41]} Bxc3+ {[%emt 0:05:06]} 9. bxc3 {[%emt 0:00:18]} d5 {[%emt 0:01:35]} 10. Qe2 {[%emt 0:06:59]} dxe4 {[%emt 0:01:39]} 11. Bxe4 {[%emt 0:00:36]} Nxe4 {[%emt 0:00:08]} 12. Qxe4 {[%emt 0:00:24]} Qa5 {[%emt 0:03:50]} 13. Bd2 {[%emt 0:03:51]} Ne7 {[%emt 0:06:15]} 14. Qe5 {[%emt 0:08:01]} Qxe5+ {[%emt 0:00:30]} 15. Nxe5 {[%emt 0:00:14]} b6 {[%emt 0:02:08]} 16. Nc4 {[%emt 0:06:44]} O-O {[%emt 0:03:36]} 17. O-O {[%emt 0:04:24]} Ba6 {[%emt 0:01:17]} 18. Nxb6 {[%emt 0:00:54]} axb6 {[%emt 0:00:09]} 19. Rfe1 {[%emt 0:01:17]} Bc4 {[%emt 0:02:05]} 20. Bf4 {[%emt 0:03:20]} Nd5 {[%emt 0:03:47]} 21. Bd6 {[%emt 0:01:01]} Rfd8 {[%emt 0:02:38]} 22. Bb4 {[%emt 0:01:17]} Nxb4 {[%emt 0:01:14]} 23. axb4 {[%emt 0:00:15]} Rxa1 {[%emt 0:00:22]} 24. Rxa1 {[%emt 0:00:10]} f6 {[%emt 0:00:29]} 25. f4 {[%emt 0:00:50]} Re8 {[%emt 0:00:18]} 26. Kf2 {[%emt 0:02:30]} e5 {[%emt 0:01:21]} 27. fxe5 {[%emt 0:00:28]} fxe5 {[%emt 0:02:46]} 28. Re1 {[%emt 0:00:28]} Rf8+ {[%emt 0:00:29]} 29. Ke3 {[%emt 0:01:48]} exd4+ {[%emt 0:00:23]} 30. Kxd4 {[%emt 0:00:20]} b5 {[%emt 0:00:21]} 31. Ke3 {[%emt 0:01:52]} Re8+ {[%emt 0:00:26]} 32. Kf2 {[%emt 0:00:05]} Rxe1 {[%emt 0:00:06]} 33. Kxe1 {[%emt 0:00:04]} Kf7 {[%emt 0:00:06]} 34. Kd2 {[%emt 0:00:13]} Kf6 {[%emt 0:00:18]} 35. Ke3 {[%emt 0:00:22]} Ke5 {[%emt 0:00:11]} 36. h4 {[%emt 0:03:49]} h5 {[%emt 0:00:22]} 37. g3 {[%emt 0:00:14]} g6 {[%emt 0:00:12]} 38. Kf3 {[%emt 0:00:18]} Kf5 {[%emt 0:00:09]} 39. Ke3 {[%emt 0:02:33]} Kg4 {[%emt 0:00:31]} 40. Kf2 {[%emt 0:00:40]} Bd5 {[%emt 0:00:41]} 0-1

[Event "DVM U12W 2021"]
[Site "Willingen"]
[Date "2022.08.16"]
[Round "7"]
[White "Brandt, Clara"]
[Black "Mo, Keyou"]
[Result "1-0"]
[ECO "A29"]
[WhiteElo "1161"]
[BlackElo "1264"]
[Annotator "NA RC"]
[PlyCount "113"]
[EventDate "2022.08.12"]
[EventType "team-tourn"]
[EventRounds "7"]
[EventCountry "GER"]
[SourceTitle "playchess.com"]
[Source "ChessBase"]
[SourceQuality "1"]
[TimeControl "40/5400+30:1800+30"]

1. c4 {[%emt 0:00:09]} e5 {[%emt 0:00:00]} 2. Nc3 {[%emt 0:00:09]} Nf6 {[%emt 0:00:00]} 3. g3 {[%emt 0:00:10]} d5 {[%emt 0:00:02]} 4. cxd5 {[%emt 0:00:07]} Nxd5 {[%emt 0:00:14]} 5. Bg2 {[%emt 0:00:20]} Be6 {[%emt 0:00:23]} 6. Nf3 {[%emt 0:00:12]} Nc6 {[%emt 0:00:23]} 7. O-O {[%emt 0:01:16]} Bc5 {[%emt 0:03:18]} 8. e3 {[%emt 0:03:40]} Qd7 {[%emt 0:03:10]} 9. d4 {[%emt 0:00:24]} Nxc3 {[%emt 0:00:26]} 10. bxc3 {[%emt 0:00:23]} O-O-O {[%emt 0:03:49]} 11. Bb2 {[%emt 0:03:10]} Bd6 {[%emt 0:03:10]} 12. d5 {[%emt 0:02:49]} Bg4 {[%emt 0:01:51]} 13. dxc6 {[%emt 0:00:25]} Qxc6 {[%emt 0:06:20]} 14. Nxe5 {[%emt 0:02:30]} Qxg2+ {[%emt 0:00:15]} 15. Kxg2 {[%emt 0:00:07]} Bxd1 {[%emt 0:02:10]} 16. Nxf7 {[%emt 0:03:00]} Be2 {[%emt 0:02:19]} 17. Rfe1 {[%emt 0:00:57]} Bc4 {[%emt 0:03:18]} 18. Nxh8 {[%emt 0:00:16]} Rxh8 {[%emt 0:03:29]} 19. a3 {[%emt 0:03:14]} h5 {[%emt 0:04:02]} 20. h4 {[%emt 0:03:09]} Rg8 {[%emt 0:03:21]} 21. f4 {[%emt 0:03:25]} g6 {[%emt 0:02:56]} 22. a4 {[%emt 0:01:17]} a6 {[%emt 0:01:12]} 23. Ba3 {[%emt 0:01:25]} c5 {[%emt 0:02:18]} 24. Red1 {[%emt 0:00:34]} Kc7 {[%emt 0:02:27]} 25. Rd2 {[%emt 0:01:30]} Rd8 {[%emt 0:01:35]} 26. e4 {[%emt 0:01:10]} b6 {[%emt 0:01:52]} 27. e5 {[%emt 0:00:49]} Be7 {[%emt 0:01:22]} 28. Rxd8 {[%emt 0:00:41]} Bxd8 {[%emt 0:01:45]} 29. a5 {[%emt 0:00:56]} Kc6 {[%emt 0:01:25]} 30. axb6 {[%emt 0:00:09]} Bxb6 {[%emt 0:03:25]} 31. Rb1 {[%emt 0:01:37]} Bd5+ {[%emt 0:01:54]} 32. Kh3 {[%emt 0:00:36]} Be6+ {[%emt 0:02:08]} 33. Kh2 {[%emt 0:01:33]} Bf5 {[%emt 0:02:31]} 34. Re1 {[%emt 0:00:42]} c4 {[%emt 0:00:54]} 35. e6 {[%emt 0:01:28]} Bf2 {[%emt 0:02:04]} 36. e7 {[%emt 0:04:11]} Bxe1 {[%emt 0:00:10]} 37. e8=Q+ {[%emt 0:00:09]} Bd7 {[%emt 0:00:09]} 38. Qxe1 {[%emt 0:00:11]} a5 {[%emt 0:00:22]} 39. Qe4+ {[%emt 0:00:07]} Kc7 {[%emt 0:00:22]} 40. Qxg6 {[%emt 0:00:13]} a4 {[%emt 0:00:18]} 41. f5 {[%emt 0:30:09]} Kd8 {[%emt 0:30:41]} 42. f6 {[%emt 0:00:06]} Kc7 {[%emt 0:00:11]} 43. f7 {[%emt 0:00:04]} Kd8 {[%emt 0:00:10]} 44. f8=Q+ {[%emt 0:00:07]} Kc7 {[%emt 0:00:21]} 45. Qff7 {[%emt 0:00:08]} Kd8 {[%emt 0:00:18]} 46. Qxd7+ Kxd7 {[%emt 2:05:08]} 47. g4 {[%emt 0:00:55]} hxg4 {[%emt 0:00:00]} 48. Qxg4+ {[%emt 0:00:10]} Kc6 {[%emt 0:00:00]} 49. h5 {[%emt 0:00:09]} Kd5 {[%emt 0:00:00]} 50. h6 {[%emt 0:00:07]} Kc6 {[%emt 0:00:00]} 51. Qxc4+ {[%emt 0:00:08]} Kb6 {[%emt 0:00:00]} 52. Qxa4 {[%emt 0:00:10]} Kc7 {[%emt 0:00:00]} 53. h7 {[%emt 0:00:09]} Kd8 {[%emt 0:00:00]} 54. h8=Q+ {[%emt 0:00:08]} Kc7 {[%emt 0:00:00]} 55. Qa6 {[%emt 0:00:04]} Kd7 {[%emt 0:00:00]} 56. Qh7+ {[%emt 0:00:06]} Ke8 57. Qa8# {[%emt 0:02:52]} 1-0

[Event "DVM U12W 2021"]
[Site "Willingen"]
[Date "2022.08.16"]
[Round "7"]
[White "Mehner, Clara"]
[Black "Goeb, Franziska"]
[Result "1/2-1/2"]
[ECO "C53"]
[WhiteElo "1150"]
[BlackElo "1285"]
[Annotator "NA RC"]
[PlyCount "42"]
[EventDate "2022.08.12"]
[EventType "team-tourn"]
[EventRounds "7"]
[EventCountry "GER"]
[SourceTitle "playchess.com"]
[Source "ChessBase"]
[SourceQuality "1"]
[TimeControl "40/5400+30:1800+30"]

1. e4 {[%emt 0:00:02]} e5 {[%emt 0:00:05]} 2. Nf3 {[%emt 0:00:05]} Nc6 {[%emt 0:00:04]} 3. d4 {[%emt 0:00:07]} exd4 {[%emt 0:00:10]} 4. Bc4 {[%emt 0:00:09]} Bc5 {[%emt 0:04:02]} 5. c3 {[%emt 0:00:25]} d6 {[%emt 0:07:56]} 6. cxd4 {[%emt 0:03:52]} Bb4+ {[%emt 0:04:15]} 7. Nc3 {[%emt 0:02:23]} Nf6 {[%emt 0:07:04]} 8. Bg5 {[%emt 0:09:38]} h6 {[%emt 0:08:01]} 9. Bh4 {[%emt 0:01:42]} Qe7 {[%emt 0:06:36]} 10. O-O {[%emt 0:08:00]} g5 {[%emt 0:07:08]} 11. Bg3 {[%emt 0:02:56]} Bd7 {[%emt 0:04:25]} 12. Nd5 {[%emt 0:05:26]} Nxd5 {[%emt 0:06:30]} 13. exd5 {[%emt 0:01:58]} Na5 {[%emt 0:01:53]} 14. Bd3 {[%emt 0:02:44]} O-O-O {[%emt 0:05:08]} 15. a3 {[%emt 0:01:45]} Nb3 {[%emt 0:02:44]} 16. Qxb3 {[%emt 0:06:35]} Ba5 {[%emt 0:00:40]} 17. Qc2 {[%emt 0:03:01]} Kb8 {[%emt 0:03:57]} 18. b4 {[%emt 0:09:32]} Bb6 {[%emt 0:00:19]} 19. Qc3 {[%emt 0:01:43]} f5 {[%emt 0:01:35]} 20. a4 {[%emt 0:05:40]} a6 {[%emt 0:00:46]} 21. h3 {[%emt 0:02:45]} f4 {[%emt 0:00:18]} 1/2-1/2